[Event "*** SCC Grand Prix: Titled Tuesday Blitz"]
[Site "Chess.com"]
[Date "2020.06.09"]
[Round "6"]
[White "blitzcopter"]
[Black "PetrolulSah"]
[Result "1-0"]
[WhiteElo "2082"]
[BlackElo "2234"]
[TimeControl "180+1"]
[EndTime "10:05:57 PDT"]
[Termination "blitzcopter won by checkmate"]

1. e4 {[%clk 0:02:42]} 1... e5 {[%clk 0:02:57.2]} 2. Bc4 {[%clk 0:02:41.3]} 2...
Nf6 {[%clk 0:02:56.5]} 3. d3 {[%clk 0:02:41.5]} 3... Bc5 {[%clk 0:02:55.3]} 4.
Nc3 {[%clk 0:02:41.1]} 4... O-O {[%clk 0:02:54.9]} 5. f4 {[%clk 0:02:41.2]} 5...
Bxg1 {[%clk 0:02:50.5]} 6. Rxg1 {[%clk 0:02:40.9]} 6... d5 {[%clk 0:02:50.7]} 7.
exd5 {[%clk 0:02:25.1]} 7... Bg4 {[%clk 0:02:38.8]} 8. Qd2 {[%clk 0:02:16.3]}
8... exf4 {[%clk 0:02:39]} 9. Qxf4 {[%clk 0:02:17.2]} 9... Re8+ {[%clk
0:02:38.6]} 10. Kf2 {[%clk 0:02:09.2]} 10... Nbd7 {[%clk 0:02:31]} 11. h3 {[%clk
0:02:04]} 11... Bh5 {[%clk 0:02:30.3]} 12. Bd2 {[%clk 0:01:58.4]} 12... Ne5
{[%clk 0:02:24.8]} 13. Rge1 {[%clk 0:01:56]} 13... Ng6 {[%clk 0:02:19]} 14. Qd4
{[%clk 0:01:51.4]} 14... c5 {[%clk 0:02:14.6]} 15. Qxc5 {[%clk 0:01:47.4]} 15...
Rc8 {[%clk 0:02:14.7]} 16. Qd4 {[%clk 0:01:46.5]} 16... Qd6 {[%clk 0:02:08.5]}
17. Kg1 {[%clk 0:01:25.4]} 17... a6 {[%clk 0:02:07.8]} 18. Ne4 {[%clk
0:01:24.3]} 18... Nxe4 {[%clk 0:01:59.2]} 19. Rxe4 {[%clk 0:01:25.2]} 19... Rxe4
{[%clk 0:01:51.9]} 20. Qxe4 {[%clk 0:01:26.1]} 20... Qb6+ {[%clk 0:01:49.4]} 21.
Kh2 {[%clk 0:01:22.8]} 21... Qxb2 {[%clk 0:01:48.8]} 22. Re1 {[%clk 0:01:23.2]}
22... Qxc2 {[%clk 0:01:41.7]} 23. Bb4 {[%clk 0:01:21.7]} 23... h6 {[%clk
0:01:30.6]} 24. d6 {[%clk 0:01:21.4]} 24... Nf8 {[%clk 0:01:19.8]} 25. Qe5
{[%clk 0:01:10.3]} 25... Bf3 {[%clk 0:01:00.5]} 26. Qg3 {[%clk 0:01:02.2]} 26...
Bc6 {[%clk 0:00:56.1]} 27. Re7 {[%clk 0:00:55.2]} 27... Be8 {[%clk 0:00:38.1]}
28. Qe5 {[%clk 0:00:47.8]} 28... Bc6 {[%clk 0:00:25.4]} 29. Bxf7+ {[%clk
0:00:41.3]} 29... Kh8 {[%clk 0:00:22.6]} 30. Bd5 {[%clk 0:00:41.5]} 30... Qxd3
{[%clk 0:00:18.3]} 31. Qxg7# {[%clk 0:00:41.1]} 1-0

[Event "*** SCC Grand Prix: Titled Tuesday Blitz"]
[Site "Chess.com"]
[Date "2020.06.09"]
[Round "6"]
[White "Gennady_Kozlov"]
[Black "imdvb6307"]
[Result "1-0"]
[WhiteElo "2563"]
[BlackElo "2396"]
[TimeControl "180+1"]
[EndTime "10:06:02 PDT"]
[Termination "Gennady_Kozlov won on time"]

1. b3 {[%clk 0:03:00.9]} 1... e5 {[%clk 0:02:49.2]} 2. Bb2 {[%clk 0:03:01.8]}
2... Nc6 {[%clk 0:02:44.2]} 3. e3 {[%clk 0:02:58.5]} 3... Nf6 {[%clk 0:02:42.1]}
4. Bb5 {[%clk 0:02:54.5]} 4... Bd6 {[%clk 0:02:40.8]} 5. Nf3 {[%clk 0:02:51.1]}
5... Qe7 {[%clk 0:02:36.4]} 6. d4 {[%clk 0:02:48.9]} 6... Bb4+ {[%clk
0:02:07.5]} 7. c3 {[%clk 0:02:31.5]} 7... exd4 {[%clk 0:02:06.3]} 8. Bxc6 {[%clk
0:02:24.1]} 8... dxc3 {[%clk 0:02:05.4]} 9. Bxd7+ {[%clk 0:02:24]} 9... Qxd7
{[%clk 0:01:52.4]} 10. Qxd7+ {[%clk 0:02:22]} 10... Bxd7 {[%clk 0:01:51.9]} 11.
Bxc3 {[%clk 0:02:22.9]} 11... Nd5 {[%clk 0:01:47.3]} 12. Bxb4 {[%clk 0:02:13.7]}
12... Nxb4 {[%clk 0:01:46.8]} 13. Na3 {[%clk 0:02:14.6]} 13... O-O-O {[%clk
0:01:07.1]} 14. O-O {[%clk 0:02:07.3]} 14... f6 {[%clk 0:01:05]} 15. Rfc1 {[%clk
0:02:05.2]} 15... Kb8 {[%clk 0:01:01.2]} 16. Rc4 {[%clk 0:02:02.8]} 16... Nd3
{[%clk 0:00:57.1]} 17. Nd4 {[%clk 0:01:59.7]} 17... c5 {[%clk 0:00:53.4]} 18.
Nf3 {[%clk 0:01:58.9]} 18... Be6 {[%clk 0:00:51.5]} 19. Rc3 {[%clk 0:01:56.5]}
19... b6 {[%clk 0:00:48.5]} 20. h3 {[%clk 0:01:54.6]} 20... Nb4 {[%clk
0:00:48.2]} 21. Nc4 {[%clk 0:01:50.4]} 21... Rd7 {[%clk 0:00:42.9]} 22. a3
{[%clk 0:01:49.5]} 22... Nc6 {[%clk 0:00:37.3]} 23. b4 {[%clk 0:01:34.2]} 23...
b5 {[%clk 0:00:34]} 24. Ncd2 {[%clk 0:01:27]} 24... c4 {[%clk 0:00:31.8]} 25. a4
{[%clk 0:01:27]} 25... a6 {[%clk 0:00:30.2]} 26. axb5 {[%clk 0:01:26.2]} 26...
axb5 {[%clk 0:00:30.1]} 27. Ne4 {[%clk 0:01:25.8]} 27... Bd5 {[%clk 0:00:22.6]}
28. Nc5 {[%clk 0:01:25.1]} 28... Rdd8 {[%clk 0:00:22.7]} 29. Rca3 {[%clk
0:01:18.3]} 29... Ne7 {[%clk 0:00:17.3]} 30. Nd4 {[%clk 0:01:15.8]} 30... Bc6
{[%clk 0:00:13.1]} 31. Ra7 {[%clk 0:01:11.9]} 31... Rxd4 {[%clk 0:00:07.9]} 32.
exd4 {[%clk 0:01:09]} 32... Nd5 {[%clk 0:00:07]} 33. Rxg7 {[%clk 0:01:05.5]}
33... Nxb4 {[%clk 0:00:06.8]} 34. Na6+ {[%clk 0:01:04.6]} 34... Nxa6 {[%clk
0:00:01.8]} 35. Rxa6 {[%clk 0:01:05.5]} 1-0

[Event "*** SCC Grand Prix: Titled Tuesday Blitz"]
[Site "Chess.com"]
[Date "2020.06.09"]
[Round "6"]
[White "bait_or_mate"]
[Black "2346PL"]
[Result "1-0"]
[WhiteElo "2594"]
[BlackElo "2415"]
[TimeControl "180+1"]
[EndTime "10:06:04 PDT"]
[Termination "bait_or_mate won by checkmate"]

1. d4 {[%clk 0:03:00.9]} 1... f5 {[%clk 0:03:00.3]} 2. Nc3 {[%clk 0:02:59.2]}
2... Nf6 {[%clk 0:03:00.2]} 3. Bg5 {[%clk 0:02:57.2]} 3... d5 {[%clk 0:03:00.7]}
4. Bxf6 {[%clk 0:02:56.5]} 4... exf6 {[%clk 0:03:01.6]} 5. e3 {[%clk 0:02:57.3]}
5... Be6 {[%clk 0:03:01.2]} 6. Bd3 {[%clk 0:02:55.7]} 6... g6 {[%clk 0:03:00.9]}
7. h4 {[%clk 0:02:55.6]} 7... h5 {[%clk 0:03:00.8]} 8. Nh3 {[%clk 0:02:54.8]}
8... Bf7 {[%clk 0:03:00.2]} 9. Nf4 {[%clk 0:02:54.7]} 9... Qd7 {[%clk
0:02:59.7]} 10. Qf3 {[%clk 0:02:47.3]} 10... Bb4 {[%clk 0:02:57.3]} 11. Ne2
{[%clk 0:02:41]} 11... Nc6 {[%clk 0:02:52.5]} 12. a3 {[%clk 0:02:40.7]} 12...
Be7 {[%clk 0:02:48.6]} 13. Nf4 {[%clk 0:02:38.9]} 13... O-O-O {[%clk 0:02:48.3]}
14. O-O-O {[%clk 0:02:36.6]} 14... a6 {[%clk 0:02:47.2]} 15. Kb1 {[%clk
0:02:35.2]} 15... Na5 {[%clk 0:02:39.3]} 16. Rhe1 {[%clk 0:02:23.1]} 16... b5
{[%clk 0:02:36.6]} 17. Na2 {[%clk 0:02:15.6]} 17... Nc4 {[%clk 0:02:33.6]} 18.
Bxc4 {[%clk 0:02:12.7]} 18... bxc4 {[%clk 0:02:32.7]} 19. Qe2 {[%clk 0:02:08.6]}
19... Qa4 {[%clk 0:02:28.2]} 20. Qd2 {[%clk 0:02:07.2]} 20... Kd7 {[%clk
0:02:24.6]} 21. Nc3 {[%clk 0:02:00.6]} 21... Qc6 {[%clk 0:02:19.7]} 22. f3
{[%clk 0:01:57.5]} 22... Rb8 {[%clk 0:02:17.8]} 23. Ka1 {[%clk 0:01:58.1]} 23...
Qd6 {[%clk 0:02:06.8]} 24. Na4 {[%clk 0:01:35.6]} 24... Qc6 {[%clk 0:01:58.8]}
25. Nc5+ {[%clk 0:01:32.2]} 25... Kc8 {[%clk 0:01:55.7]} 26. Qa5 {[%clk
0:01:29.1]} 26... Bxc5 {[%clk 0:01:36.6]} 27. dxc5 {[%clk 0:01:30]} 27... Rd8
{[%clk 0:01:35.3]} 28. e4 {[%clk 0:01:10.5]} 28... fxe4 {[%clk 0:01:30.9]} 29.
fxe4 {[%clk 0:01:10.1]} 29... dxe4 {[%clk 0:01:21.2]} 30. Rxd8+ {[%clk
0:01:08.9]} 30... Kxd8 {[%clk 0:01:22.1]} 31. Qc3 {[%clk 0:00:59.9]} 31... Kc8
{[%clk 0:01:12.4]} 32. Qd4 {[%clk 0:00:57.5]} 32... f5 {[%clk 0:01:09.8]} 33.
Qg7 {[%clk 0:00:24]} 33... Be8 {[%clk 0:01:06]} 34. Rd1 {[%clk 0:00:20.6]} 34...
Qxc5 {[%clk 0:00:57.5]} 35. Ne6 {[%clk 0:00:17.4]} 35... Qb5 {[%clk 0:00:51.7]}
36. Qxc7# {[%clk 0:00:16.2]} 1-0

[Event "*** SCC Grand Prix: Titled Tuesday Blitz"]
[Site "Chess.com"]
[Date "2020.06.09"]
[Round "6"]
[White "DrBergerBerger"]
[Black "MF1966Idrisov"]
[Result "1-0"]
[WhiteElo "2434"]
[BlackElo "2272"]
[TimeControl "180+1"]
[EndTime "10:06:07 PDT"]
[Termination "DrBergerBerger won by checkmate"]

1. e4 {[%clk 0:03:00.9]} 1... c5 {[%clk 0:02:58.2]} 2. Nc3 {[%clk 0:03:00.3]}
2... Nc6 {[%clk 0:02:58.6]} 3. Nge2 {[%clk 0:03:00]} 3... g6 {[%clk 0:02:58.6]}
4. d4 {[%clk 0:02:59.8]} 4... cxd4 {[%clk 0:02:55.1]} 5. Nxd4 {[%clk 0:03:00.7]}
5... Bg7 {[%clk 0:02:55.1]} 6. Be3 {[%clk 0:03:01.2]} 6... Nf6 {[%clk
0:02:54.7]} 7. Bc4 {[%clk 0:02:59.5]} 7... O-O {[%clk 0:02:54.3]} 8. Bb3 {[%clk
0:02:56.8]} 8... e6 {[%clk 0:02:51.8]} 9. f4 {[%clk 0:02:31.9]} 9... d5 {[%clk
0:02:50.9]} 10. e5 {[%clk 0:02:31.6]} 10... Nd7 {[%clk 0:02:45]} 11. O-O {[%clk
0:02:22.8]} 11... a6 {[%clk 0:02:43.2]} 12. Nce2 {[%clk 0:02:17.2]} 12... Qc7
{[%clk 0:02:36.9]} 13. c3 {[%clk 0:02:15.2]} 13... Nc5 {[%clk 0:02:24.8]} 14.
Bc2 {[%clk 0:01:50.8]} 14... Nxd4 {[%clk 0:02:13.3]} 15. cxd4 {[%clk 0:01:47.8]}
15... Nd7 {[%clk 0:02:04.8]} 16. Rc1 {[%clk 0:01:45.8]} 16... Qa5 {[%clk
0:02:01.1]} 17. Bb1 {[%clk 0:01:40.1]} 17... b5 {[%clk 0:01:49.3]} 18. Qd2
{[%clk 0:01:37.5]} 18... Qxd2 {[%clk 0:01:42.6]} 19. Bxd2 {[%clk 0:01:38.4]}
19... Nb6 {[%clk 0:01:42.1]} 20. b3 {[%clk 0:01:35.7]} 20... Bd7 {[%clk
0:01:40.2]} 21. Ba5 {[%clk 0:01:32.5]} 21... Rfb8 {[%clk 0:01:30.1]} 22. Rc7
{[%clk 0:01:28.5]} 22... Be8 {[%clk 0:01:29.9]} 23. Nc1 {[%clk 0:01:13.7]} 23...
Bf8 {[%clk 0:01:28.8]} 24. Nd3 {[%clk 0:01:13.2]} 24... Nd7 {[%clk 0:01:24.7]}
25. g4 {[%clk 0:01:04.6]} 25... b4 {[%clk 0:01:23.4]} 26. Rc2 {[%clk 0:00:57.7]}
26... Rb5 {[%clk 0:01:20.3]} 27. Bc7 {[%clk 0:00:55.7]} 27... Rc8 {[%clk
0:01:19.8]} 28. Rfc1 {[%clk 0:00:54.7]} 28... a5 {[%clk 0:01:03.8]} 29. g5
{[%clk 0:00:43.2]} 29... Nb8 {[%clk 0:01:02.6]} 30. Nf2 {[%clk 0:00:37.3]} 30...
Na6 {[%clk 0:01:00.7]} 31. Ng4 {[%clk 0:00:36.2]} 31... Be7 {[%clk 0:00:54.5]}
32. Bd6 {[%clk 0:00:33.7]} 32... Rxc2 {[%clk 0:00:53]} 33. Rxc2 {[%clk
0:00:34.4]} 33... Bxd6 {[%clk 0:00:48.6]} 34. Nf6+ {[%clk 0:00:33.9]} 34... Kf8
{[%clk 0:00:46.9]} 35. exd6 {[%clk 0:00:28.7]} 35... Nb8 {[%clk 0:00:43.8]} 36.
Rc8 {[%clk 0:00:27]} 36... Rb7 {[%clk 0:00:43.6]} 37. Rxe8+ {[%clk 0:00:26.4]}
37... Kg7 {[%clk 0:00:42.4]} 38. Rg8# {[%clk 0:00:27.3]} 1-0

[Event "*** SCC Grand Prix: Titled Tuesday Blitz"]
[Site "Chess.com"]
[Date "2020.06.09"]
[Round "6"]
[White "Ceejay271"]
[Black "vaishali2001"]
[Result "0-1"]
[WhiteElo "2387"]
[BlackElo "2620"]
[TimeControl "180+1"]
[EndTime "10:06:10 PDT"]
[Termination "vaishali2001 won by checkmate"]

1. d4 {[%clk 0:03:00.9]} 1... Nf6 {[%clk 0:02:59.3]} 2. c4 {[%clk 0:03:00.8]}
2... c5 {[%clk 0:02:57.3]} 3. d5 {[%clk 0:03:00.7]} 3... b5 {[%clk 0:02:57]} 4.
cxb5 {[%clk 0:02:58.8]} 4... a6 {[%clk 0:02:57.4]} 5. bxa6 {[%clk 0:02:58.9]}
5... g6 {[%clk 0:02:57.9]} 6. Nc3 {[%clk 0:02:59.2]} 6... Bxa6 {[%clk
0:02:56.9]} 7. e4 {[%clk 0:02:59.7]} 7... Bxf1 {[%clk 0:02:56.8]} 8. Kxf1 {[%clk
0:02:59.1]} 8... d6 {[%clk 0:02:57.7]} 9. g3 {[%clk 0:02:59.5]} 9... Bg7 {[%clk
0:02:58]} 10. Kg2 {[%clk 0:03:00.1]} 10... Nbd7 {[%clk 0:02:58.6]} 11. Nf3
{[%clk 0:03:00.6]} 11... O-O {[%clk 0:02:59.3]} 12. a4 {[%clk 0:02:54.6]} 12...
Ra6 {[%clk 0:02:59.1]} 13. Qc2 {[%clk 0:02:51.2]} 13... Qa8 {[%clk 0:02:41.3]}
14. Ra3 {[%clk 0:02:49.8]} 14... e6 {[%clk 0:02:31]} 15. dxe6 {[%clk 0:02:47.1]}
15... fxe6 {[%clk 0:02:31.9]} 16. Re1 {[%clk 0:02:45.9]} 16... Ng4 {[%clk
0:01:38.3]} 17. Nb5 {[%clk 0:02:30]} 17... Qb7 {[%clk 0:01:03.6]} 18. h3 {[%clk
0:02:21.3]} 18... Nge5 {[%clk 0:01:02.6]} 19. Ng5 {[%clk 0:02:18.1]} 19... d5
{[%clk 0:00:58.9]} 20. f4 {[%clk 0:02:05.2]} 20... Nc4 {[%clk 0:00:46.9]} 21.
Rb3 {[%clk 0:01:50.9]} 21... Qc8 {[%clk 0:00:24.3]} 22. exd5 {[%clk 0:01:27.3]}
22... exd5 {[%clk 0:00:25.2]} 23. Ne6 {[%clk 0:01:24.1]} 23... Re8 {[%clk
0:00:19.8]} 24. Nbc7 {[%clk 0:01:23.9]} 24... Re7 {[%clk 0:00:11.6]} 25. Nxa6
{[%clk 0:01:21.4]} 25... Qxa6 {[%clk 0:00:10.9]} 26. f5 {[%clk 0:01:06.4]} 26...
d4 {[%clk 0:00:04]} 27. Nc7 {[%clk 0:01:00.1]} 27... Qc6+ {[%clk 0:00:03.9]} 28.
Kh2 {[%clk 0:00:56.1]} 28... Rxe1 {[%clk 0:00:02.4]} 29. Qxc4+ {[%clk
0:00:55.4]} 29... Kh8 {[%clk 0:00:02.9]} 30. Bf4 {[%clk 0:00:41.6]} 30... Qh1#
{[%clk 0:00:02.5]} 0-1

[Event "*** SCC Grand Prix: Titled Tuesday Blitz"]
[Site "Chess.com"]
[Date "2020.06.09"]
[Round "6"]
[White "Duhless"]
[Black "LyonBeast"]
[Result "0-1"]
[WhiteElo "3050"]
[BlackElo "2972"]
[TimeControl "180+1"]
[EndTime "10:06:13 PDT"]
[Termination "LyonBeast won by resignation"]

1. Nf3 {[%clk 0:03:00.9]} 1... c5 {[%clk 0:02:58.5]} 2. b3 {[%clk 0:02:59.8]}
2... b6 {[%clk 0:02:58.2]} 3. g3 {[%clk 0:02:57.2]} 3... Bb7 {[%clk 0:02:58.5]}
4. Bg2 {[%clk 0:02:57.8]} 4... e6 {[%clk 0:02:57.9]} 5. Bb2 {[%clk 0:02:56.5]}
5... Nf6 {[%clk 0:02:58.4]} 6. c4 {[%clk 0:02:55.1]} 6... Be7 {[%clk 0:02:59]}
7. O-O {[%clk 0:02:53.8]} 7... O-O {[%clk 0:02:59.7]} 8. Nc3 {[%clk 0:02:53.4]}
8... d6 {[%clk 0:02:56.9]} 9. e3 {[%clk 0:02:53.2]} 9... Nbd7 {[%clk 0:02:56.8]}
10. Qe2 {[%clk 0:02:52.7]} 10... a6 {[%clk 0:02:55.3]} 11. d4 {[%clk 0:02:49.9]}
11... Ne4 {[%clk 0:02:54.8]} 12. Rfd1 {[%clk 0:02:47.3]} 12... Nxc3 {[%clk
0:02:52.9]} 13. Bxc3 {[%clk 0:02:46.8]} 13... Nf6 {[%clk 0:02:50.2]} 14. Bb2
{[%clk 0:02:36.2]} 14... Qc7 {[%clk 0:02:46.8]} 15. Rac1 {[%clk 0:02:33.2]}
15... Be4 {[%clk 0:02:40.8]} 16. d5 {[%clk 0:02:24.2]} 16... exd5 {[%clk
0:02:39.4]} 17. cxd5 {[%clk 0:02:23.8]} 17... Qb7 {[%clk 0:02:32.4]} 18. Nh4
{[%clk 0:02:19.6]} 18... Bxg2 {[%clk 0:02:31.6]} 19. Kxg2 {[%clk 0:02:17.5]}
19... g6 {[%clk 0:02:28.9]} 20. Nf3 {[%clk 0:01:52.6]} 20... Rfe8 {[%clk
0:02:27]} 21. h4 {[%clk 0:01:50.5]} 21... h5 {[%clk 0:02:24.6]} 22. Qc2 {[%clk
0:01:47.3]} 22... Nd7 {[%clk 0:02:22.8]} 23. Ng5 {[%clk 0:01:37.1]} 23... Bf6
{[%clk 0:02:11.5]} 24. e4 {[%clk 0:01:14.6]} 24... Re7 {[%clk 0:02:04.5]} 25.
Re1 {[%clk 0:01:11.8]} 25... Rae8 {[%clk 0:02:03.1]} 26. Re2 {[%clk 0:01:04.1]}
26... b5 {[%clk 0:01:51.1]} 27. Rce1 {[%clk 0:01:02.9]} 27... Bxb2 {[%clk
0:01:50.7]} 28. Qxb2 {[%clk 0:01:02.6]} 28... Ne5 {[%clk 0:01:51.6]} 29. Qc3
{[%clk 0:00:58.2]} 29... b4 {[%clk 0:01:46.5]} 30. Qc2 {[%clk 0:00:53.7]} 30...
Qb5 {[%clk 0:01:44.6]} 31. f4 {[%clk 0:00:50.6]} 31... Ng4 {[%clk 0:01:44.7]}
32. e5 {[%clk 0:00:38.1]} 32... dxe5 {[%clk 0:01:44.5]} 33. f5 {[%clk
0:00:38.5]} 33... Qd7 {[%clk 0:01:33.5]} 34. fxg6 {[%clk 0:00:29.3]} 34... Qxd5+
{[%clk 0:01:33.2]} 35. Kh3 {[%clk 0:00:24.5]} 35... f6 {[%clk 0:01:32.7]} 36.
Rd1 {[%clk 0:00:21.7]} 36... Qc6 {[%clk 0:01:17.1]} 37. Nf7 {[%clk 0:00:20.6]}
37... Rd7 {[%clk 0:01:06.5]} 38. Nh6+ {[%clk 0:00:14.7]} 38... Nxh6 {[%clk
0:01:03.4]} 0-1

[Event "*** SCC Grand Prix: Titled Tuesday Blitz"]
[Site "Chess.com"]
[Date "2020.06.09"]
[Round "6"]
[White "froylanajedrez"]
[Black "ENEASZ"]
[Result "0-1"]
[WhiteElo "2337"]
[BlackElo "2465"]
[TimeControl "180+1"]
[EndTime "10:06:13 PDT"]
[Termination "ENEASZ won by resignation"]

1. Nf3 {[%clk 0:03:00.9]} 1... g6 {[%clk 0:03:00.9]} 2. g3 {[%clk 0:03:00.8]}
2... Bg7 {[%clk 0:03:01.8]} 3. Bg2 {[%clk 0:03:00.6]} 3... c5 {[%clk 0:03:02.5]}
4. O-O {[%clk 0:03:00.7]} 4... Nc6 {[%clk 0:03:03.1]} 5. e4 {[%clk 0:02:55]}
5... d6 {[%clk 0:03:03]} 6. c3 {[%clk 0:02:53.6]} 6... e5 {[%clk 0:03:03]} 7.
Re1 {[%clk 0:02:49.5]} 7... Nge7 {[%clk 0:03:02.9]} 8. d3 {[%clk 0:02:46.2]}
8... O-O {[%clk 0:03:03.1]} 9. Be3 {[%clk 0:02:46.2]} 9... h6 {[%clk 0:03:03.1]}
10. Qd2 {[%clk 0:02:45.4]} 10... Kh7 {[%clk 0:03:02.9]} 11. d4 {[%clk
0:02:44.4]} 11... exd4 {[%clk 0:02:59.8]} 12. cxd4 {[%clk 0:02:44.7]} 12... f5
{[%clk 0:02:52.4]} 13. Nc3 {[%clk 0:02:35.6]} 13... cxd4 {[%clk 0:02:40]} 14.
Nxd4 {[%clk 0:02:32.6]} 14... Ne5 {[%clk 0:02:40.3]} 15. exf5 {[%clk 0:02:29]}
15... Nxf5 {[%clk 0:02:38.7]} 16. b3 {[%clk 0:02:02.3]} 16... Nxe3 {[%clk
0:02:29.3]} 17. Rxe3 {[%clk 0:01:55.4]} 17... Ng4 {[%clk 0:02:27.1]} 18. Rf3
{[%clk 0:01:54.1]} 18... Rxf3 {[%clk 0:02:21.1]} 19. Bxf3 {[%clk 0:01:47.1]}
19... Qf6 {[%clk 0:02:20.8]} 20. Rd1 {[%clk 0:01:22.2]} 20... Ne5 {[%clk
0:02:10.3]} 21. Be2 {[%clk 0:00:44.6]} 21... Bh3 {[%clk 0:02:00.3]} 22. Ne4
{[%clk 0:00:29]} 22... Qf7 {[%clk 0:01:55.5]} 23. f4 {[%clk 0:00:24.9]} 23...
Qd5 {[%clk 0:01:25.6]} 24. fxe5 {[%clk 0:00:12.7]} 24... Qxe4 {[%clk 0:01:24.6]}
25. Bf3 {[%clk 0:00:11]} 25... Qxe5 {[%clk 0:01:22.7]} 26. Ne2 {[%clk 0:00:11]}
26... Rf8 {[%clk 0:01:21.1]} 27. Nf4 {[%clk 0:00:10.9]} 27... Qc5+ {[%clk
0:01:14.2]} 28. Kh1 {[%clk 0:00:09.3]} 28... Bf5 {[%clk 0:01:12.8]} 29. Qxd6
{[%clk 0:00:06.9]} 29... Qf2 {[%clk 0:01:07]} 30. Bg2 {[%clk 0:00:05.5]} 30...
Re8 {[%clk 0:01:03.7]} 31. Qd2 {[%clk 0:00:04.7]} 31... Qxd2 {[%clk 0:01:02.1]}
32. Rxd2 {[%clk 0:00:05.6]} 32... Re1+ {[%clk 0:01:02.2]} 33. Bf1 {[%clk
0:00:06.5]} 33... Rxf1+ {[%clk 0:01:03.1]} 34. Kg2 {[%clk 0:00:07.1]} 34... Rc1
{[%clk 0:01:01.1]} 35. Re2 {[%clk 0:00:05]} 35... Rc2 {[%clk 0:01:00.7]} 36. Kf3
{[%clk 0:00:05.1]} 36... g5 {[%clk 0:00:58.7]} 37. Nh5 {[%clk 0:00:03.9]} 37...
Rxe2 {[%clk 0:00:54.4]} 38. Kxe2 {[%clk 0:00:04.8]} 38... Bg4+ {[%clk
0:00:54.6]} 0-1

[Event "*** SCC Grand Prix: Titled Tuesday Blitz"]
[Site "Chess.com"]
[Date "2020.06.09"]
[Round "6"]
[White "Karateloru"]
[Black "Sanan_Sjugirov"]
[Result "1/2-1/2"]
[WhiteElo "2629"]
[BlackElo "2778"]
[TimeControl "180+1"]
[EndTime "10:06:14 PDT"]
[Termination "Game drawn by repetition"]

1. e4 {[%clk 0:03:00.9]} 1... c5 {[%clk 0:02:59.7]} 2. Nf3 {[%clk 0:03:00.9]}
2... d6 {[%clk 0:02:59.1]} 3. Bb5+ {[%clk 0:03:00.4]} 3... Bd7 {[%clk 0:02:58]}
4. c4 {[%clk 0:03:00.8]} 4... Nf6 {[%clk 0:02:56.3]} 5. Nc3 {[%clk 0:03:00.1]}
5... g6 {[%clk 0:02:55.7]} 6. O-O {[%clk 0:02:58.7]} 6... Bg7 {[%clk 0:02:55.3]}
7. Bxd7+ {[%clk 0:02:58.7]} 7... Qxd7 {[%clk 0:02:54.5]} 8. d4 {[%clk
0:02:58.9]} 8... cxd4 {[%clk 0:02:54.7]} 9. Nxd4 {[%clk 0:02:59.8]} 9... O-O
{[%clk 0:02:54.7]} 10. f3 {[%clk 0:02:47]} 10... Nc6 {[%clk 0:02:53.4]} 11. Be3
{[%clk 0:02:47]} 11... a6 {[%clk 0:02:52.4]} 12. Rc1 {[%clk 0:02:42.8]} 12...
Nxd4 {[%clk 0:02:43.7]} 13. Bxd4 {[%clk 0:02:42.5]} 13... b5 {[%clk 0:02:43.2]}
14. Nd5 {[%clk 0:02:39.1]} 14... Nxd5 {[%clk 0:02:38.2]} 15. cxd5 {[%clk
0:02:40]} 15... Rfc8 {[%clk 0:02:26.7]} 16. Bxg7 {[%clk 0:02:39.3]} 16... Kxg7
{[%clk 0:02:27.6]} 17. Qd4+ {[%clk 0:02:39.4]} 17... f6 {[%clk 0:02:27.3]} 18.
h3 {[%clk 0:02:23.6]} 18... Qd8 {[%clk 0:02:18.7]} 19. Qe3 {[%clk 0:02:22.4]}
19... Qa5 {[%clk 0:02:15.7]} 20. a3 {[%clk 0:02:21.2]} 20... b4 {[%clk
0:02:11.8]} 21. Kh2 {[%clk 0:02:12.1]} 21... bxa3 {[%clk 0:01:50.8]} 22. bxa3
{[%clk 0:02:13]} 22... Rcb8 {[%clk 0:01:49.5]} 23. Rc2 {[%clk 0:02:06.8]} 23...
Rb7 {[%clk 0:01:48.6]} 24. Rfc1 {[%clk 0:02:05.5]} 24... Rab8 {[%clk 0:01:48.1]}
25. Rc3 {[%clk 0:01:58.6]} 25... Qd8 {[%clk 0:01:36.4]} 26. Qf4 {[%clk 0:01:55]}
26... Rb2 {[%clk 0:01:30.3]} 27. Qg4 {[%clk 0:01:54.8]} 27... Qb6 {[%clk
0:01:16.3]} 28. Rc7 {[%clk 0:01:51.3]} 28... Rb7 {[%clk 0:00:50.9]} 29. Rxb7
{[%clk 0:01:38.2]} 29... Qxb7 {[%clk 0:00:51.8]} 30. Qe6 {[%clk 0:01:38.4]}
30... Rxg2+ {[%clk 0:00:33.1]} 31. Kxg2 {[%clk 0:01:37.9]} 31... Qb2+ {[%clk
0:00:33]} 32. Kg3 {[%clk 0:01:38.4]} 32... Qxc1 {[%clk 0:00:33]} 33. Qxe7+
{[%clk 0:01:38.6]} 33... Kh6 {[%clk 0:00:32.2]} 34. Qxf6 {[%clk 0:01:01.8]}
34... Qg1+ {[%clk 0:00:31.5]} 35. Kh4 {[%clk 0:00:51.1]} 35... Qf2+ {[%clk
0:00:29.6]} 36. Kg4 {[%clk 0:00:51.2]} 36... Qg1+ {[%clk 0:00:22.7]} 37. Kh4
{[%clk 0:00:50.6]} 37... Qf2+ {[%clk 0:00:18.5]} 38. Kg4 {[%clk 0:00:50.9]}
38... Qg1+ {[%clk 0:00:18.8]} 39. Kh4 {[%clk 0:00:51.1]} 1/2-1/2